[Event "Late-Titled-Tuesday-Blitz-February-27-2024"]
[Site "Chess.com"]
[Date "2024.02.27"]
[Round "3"]
[White "Roberz12"]
[Black "GilbertoHernandezAmura"]
[Result "1-0"]
[WhiteElo "2606"]
[BlackElo "2407"]
[TimeControl "180+1"]
[EndTime "14:25:30 PST"]
[Termination "Roberz12 won by resignation"]

1. g3 {[%clk 0:03:00.9]} 1... d5 {[%clk 0:02:59.7]} 2. Nf3 {[%clk 0:02:58.7]}
2... Nf6 {[%clk 0:02:53.8]} 3. Bg2 {[%clk 0:02:58]} 3... g6 {[%clk 0:02:50.7]}
4. O-O {[%clk 0:02:57.8]} 4... Bg7 {[%clk 0:02:50.6]} 5. d4 {[%clk 0:02:56.1]}
5... O-O {[%clk 0:02:50.4]} 6. c4 {[%clk 0:02:55.2]} 6... c6 {[%clk 0:02:50.4]}
7. Bf4 {[%clk 0:02:50.6]} 7... Nbd7 {[%clk 0:02:44.9]} 8. Nc3 {[%clk 0:02:47.5]}
8... dxc4 {[%clk 0:02:40]} 9. e4 {[%clk 0:02:47.3]} 9... b5 {[%clk 0:02:28.8]}
10. Qe2 {[%clk 0:02:31.2]} 10... e6 {[%clk 0:02:16.3]} 11. Rad1 {[%clk
0:02:29.2]} 11... Qa5 {[%clk 0:02:09.9]} 12. a3 {[%clk 0:02:20]} 12... b4 {[%clk
0:01:47.3]} 13. axb4 {[%clk 0:02:17.1]} 13... Qxb4 {[%clk 0:01:48.2]} 14. Ra1
{[%clk 0:02:05.9]} 14... Nh5 {[%clk 0:01:45.6]} 15. Bd2 {[%clk 0:02:02.3]} 15...
Qxb2 {[%clk 0:01:43.2]} 16. Rfb1 {[%clk 0:01:55.9]} 16... Qc2 {[%clk 0:01:41.9]}
17. Ne1 {[%clk 0:01:56.5]} 17... Qxb1 {[%clk 0:01:33.1]} 18. Rxb1 {[%clk
0:01:57.4]} 18... Bxd4 {[%clk 0:01:32.6]} 19. Qxc4 {[%clk 0:01:57.4]} 19... e5
{[%clk 0:01:27.7]} 20. Qxc6 {[%clk 0:01:50.7]} 20... Ndf6 {[%clk 0:01:22.8]} 21.
Qxa8 {[%clk 0:01:48.5]} 21... Ng4 {[%clk 0:01:23.3]} 22. Nd3 {[%clk 0:01:47.1]}
1-0

[Event "Late-Titled-Tuesday-Blitz-February-27-2024"]
[Site "Chess.com"]
[Date "2024.02.27"]
[Round "3"]
[White "ClauSanLuis"]
[Black "ACollins05"]
[Result "0-1"]
[WhiteElo "2349"]
[BlackElo "2581"]
[TimeControl "180+1"]
[EndTime "14:25:45 PST"]
[Termination "ACollins05 won by resignation"]

1. d4 {[%clk 0:03:00.9]} 1... d5 {[%clk 0:02:59.7]} 2. Bg5 {[%clk 0:03:00.5]}
2... h6 {[%clk 0:02:57.5]} 3. Bh4 {[%clk 0:03:00.3]} 3... c5 {[%clk 0:02:53.3]}
4. Nc3 {[%clk 0:03:00.2]} 4... Qa5 {[%clk 0:02:45.4]} 5. Nf3 {[%clk 0:02:46.3]}
5... Nc6 {[%clk 0:02:43.3]} 6. dxc5 {[%clk 0:02:45.8]} 6... e6 {[%clk
0:02:36.9]} 7. a3 {[%clk 0:02:31.7]} 7... Qxc5 {[%clk 0:02:31.6]} 8. e4 {[%clk
0:02:31.6]} 8... d4 {[%clk 0:02:13.9]} 9. Nb5 {[%clk 0:02:30.1]} 9... Qb6 {[%clk
0:02:06]} 10. Nfxd4 {[%clk 0:02:24.2]} 10... Nxd4 {[%clk 0:02:04.2]} 11. Qxd4
{[%clk 0:02:20.4]} 11... Qxd4 {[%clk 0:01:59]} 12. Nxd4 {[%clk 0:02:19.8]} 12...
a6 {[%clk 0:01:56.3]} 13. O-O-O {[%clk 0:02:18.8]} 13... Be7 {[%clk 0:01:55.1]}
14. Bg3 {[%clk 0:02:14.9]} 14... Nf6 {[%clk 0:01:54]} 15. f3 {[%clk 0:02:12.5]}
15... O-O {[%clk 0:01:53.9]} 16. Bc4 {[%clk 0:02:02.7]} 16... b5 {[%clk
0:01:52.5]} 17. Bb3 {[%clk 0:02:01.9]} 17... Bb7 {[%clk 0:01:51.9]} 18. Rd3
{[%clk 0:01:50.9]} 18... Rac8 {[%clk 0:01:51.3]} 19. Rhd1 {[%clk 0:01:50.6]}
19... Nh5 {[%clk 0:01:45]} 20. Bf2 {[%clk 0:01:49.1]} 20... Nf4 {[%clk
0:01:44.1]} 21. Nf5 {[%clk 0:01:33.8]} 21... Nxd3+ {[%clk 0:01:41.7]} 22. Rxd3
{[%clk 0:01:31.5]} 22... exf5 {[%clk 0:01:41.6]} 23. exf5 {[%clk 0:01:30.9]}
23... Rfd8 {[%clk 0:01:37.8]} 0-1

[Event "Late-Titled-Tuesday-Blitz-February-27-2024"]
[Site "Chess.com"]
[Date "2024.02.27"]
[Round "3"]
[White "picturesquecheck"]
[Black "igorknyazev"]
[Result "1-0"]
[WhiteElo "2425"]
[BlackElo "2198"]
[TimeControl "180+1"]
[EndTime "14:25:52 PST"]
[Termination "picturesquecheck won by resignation"]

1. e4 {[%clk 0:03:00.9]} 1... e5 {[%clk 0:02:59.7]} 2. Nf3 {[%clk 0:03:00.6]}
2... Nf6 {[%clk 0:03:00.3]} 3. Nxe5 {[%clk 0:02:59.8]} 3... Nxe4 {[%clk
0:02:58]} 4. Qe2 {[%clk 0:02:59.2]} 4... Qe7 {[%clk 0:02:58]} 5. Qxe4 {[%clk
0:02:59.5]} 5... d6 {[%clk 0:02:58.6]} 6. d4 {[%clk 0:02:59.8]} 6... dxe5 {[%clk
0:02:59.2]} 7. dxe5 {[%clk 0:03:00.7]} 7... Nc6 {[%clk 0:02:58.8]} 8. Nc3 {[%clk
0:03:01]} 8... Qxe5 {[%clk 0:02:58.2]} 9. Qxe5+ {[%clk 0:03:00.6]} 9... Nxe5
{[%clk 0:02:58.4]} 10. Bf4 {[%clk 0:03:00.9]} 10... Bd6 {[%clk 0:02:59]} 11. Bg3
{[%clk 0:02:39.1]} 11... O-O {[%clk 0:02:58.6]} 12. O-O-O {[%clk 0:02:36.3]}
12... Bg4 {[%clk 0:02:57.7]} 13. f3 {[%clk 0:02:32.4]} 13... Nxf3 {[%clk
0:02:55.3]} 14. gxf3 {[%clk 0:02:31.7]} 14... Bxf3 {[%clk 0:02:55.3]} 15. Bxd6
{[%clk 0:02:26.9]} 15... cxd6 {[%clk 0:02:54.4]} 16. Bc4 {[%clk 0:02:25.1]}
16... Rac8 {[%clk 0:02:47.9]} 17. Bd5 {[%clk 0:02:21]} 17... Bxd1 {[%clk
0:02:37.2]} 18. Rxd1 {[%clk 0:02:15.8]} 18... b6 {[%clk 0:02:34.1]} 19. Ne4
{[%clk 0:02:15.2]} 19... Rcd8 {[%clk 0:02:27.1]} 20. c4 {[%clk 0:02:11.2]} 20...
g6 {[%clk 0:02:15.2]} 21. Rf1 {[%clk 0:01:50.2]} 21... Kg7 {[%clk 0:02:09]} 22.
Nf6 {[%clk 0:01:49.8]} 22... Rc8 {[%clk 0:02:00.8]} 23. b3 {[%clk 0:01:45.5]}
23... Rc7 {[%clk 0:01:57.3]} 24. Kb2 {[%clk 0:01:44.6]} 24... h5 {[%clk
0:01:54.8]} 25. h4 {[%clk 0:01:43.9]} 25... Kh6 {[%clk 0:01:48.8]} 26. a4 {[%clk
0:01:41.6]} 26... g5 {[%clk 0:01:47.6]} 27. hxg5+ {[%clk 0:01:41.8]} 27... Kg6
{[%clk 0:01:46]} 28. Ne4 {[%clk 0:01:41.2]} 28... Re7 {[%clk 0:01:39.6]} 29.
Rf6+ {[%clk 0:01:37.2]} 29... Kg7 {[%clk 0:01:37.9]} 30. Nxd6 {[%clk 0:01:35.7]}
30... h4 {[%clk 0:01:32.9]} 31. Nf5+ {[%clk 0:01:34.3]} 1-0

[Event "Late-Titled-Tuesday-Blitz-February-27-2024"]
[Site "Chess.com"]
[Date "2024.02.27"]
[Round "3"]
[White "robertoalejandro10"]
[Black "giomar27"]
[Result "1-0"]
[WhiteElo "2604"]
[BlackElo "2410"]
[TimeControl "180+1"]
[EndTime "14:25:59 PST"]
[Termination "robertoalejandro10 won by resignation"]

1. Nf3 {[%clk 0:03:00.9]} 1... g6 {[%clk 0:02:59.8]} 2. c4 {[%clk 0:02:59.6]}
2... Bg7 {[%clk 0:03:00.2]} 3. g3 {[%clk 0:02:59.1]} 3... d6 {[%clk 0:02:59.2]}
4. Bg2 {[%clk 0:02:58.8]} 4... Bd7 {[%clk 0:02:59.8]} 5. Nc3 {[%clk 0:02:57.1]}
5... Qc8 {[%clk 0:03:00.3]} 6. O-O {[%clk 0:02:54.8]} 6... Bh3 {[%clk
0:03:00.3]} 7. b3 {[%clk 0:02:42.5]} 7... Nc6 {[%clk 0:02:57.5]} 8. Bb2 {[%clk
0:02:42.6]} 8... h5 {[%clk 0:02:57.3]} 9. Qc1 {[%clk 0:02:41]} 9... Nh6 {[%clk
0:02:56]} 10. Nd5 {[%clk 0:02:40.2]} 10... O-O {[%clk 0:02:51.8]} 11. Bxg7
{[%clk 0:02:31.1]} 11... Kxg7 {[%clk 0:02:52.1]} 12. Qc3+ {[%clk 0:02:31]} 12...
e5 {[%clk 0:02:51.1]} 13. d4 {[%clk 0:02:14.2]} 13... Bxg2 {[%clk 0:02:50.8]}
14. Kxg2 {[%clk 0:02:13.7]} 14... e4 {[%clk 0:02:32.9]} 15. Nd2 {[%clk
0:02:07.5]} 15... f5 {[%clk 0:02:33.4]} 16. e3 {[%clk 0:02:07.8]} 16... h4
{[%clk 0:02:27.3]} 17. Nf4 {[%clk 0:02:05.9]} 17... hxg3 {[%clk 0:02:24.1]} 18.
hxg3 {[%clk 0:01:49.7]} 18... Qd7 {[%clk 0:02:22.7]} 19. d5+ {[%clk 0:01:40]}
19... Ne5 {[%clk 0:02:22]} 20. Ne6+ {[%clk 0:01:40]} 20... Kf7 {[%clk 0:02:14]}
21. Nxf8 {[%clk 0:01:26.7]} 21... Rxf8 {[%clk 0:02:14.9]} 22. Rh1 {[%clk
0:01:26.8]} 22... Kg7 {[%clk 0:02:07.4]} 23. Rh4 {[%clk 0:01:19.9]} 23... Ng4
{[%clk 0:01:56]} 24. Rah1 {[%clk 0:01:15.3]} 24... Nf6 {[%clk 0:01:56.2]} 25.
Nb1 {[%clk 0:01:00.3]} 25... g5 {[%clk 0:01:55.8]} 26. Rh6 {[%clk 0:00:55.8]}
26... Neg4 {[%clk 0:01:54.9]} 27. Rh7+ {[%clk 0:00:54.8]} 1-0

[Event "Late-Titled-Tuesday-Blitz-February-27-2024"]
[Site "Chess.com"]
[Date "2024.02.27"]
[Round "3"]
[White "Carlitus2004"]
[Black "PNEPaul"]
[Result "1-0"]
[WhiteElo "2386"]
[BlackElo "2044"]
[TimeControl "180+1"]
[EndTime "14:26:07 PST"]
[Termination "Carlitus2004 won by resignation"]

1. Nf3 {[%clk 0:02:59.4]} 1... a6 {[%clk 0:02:59.3]} 2. g3 {[%clk 0:02:58.6]}
2... d6 {[%clk 0:02:59.6]} 3. Bg2 {[%clk 0:02:59]} 3... g6 {[%clk 0:03:00]} 4.
O-O {[%clk 0:02:59.6]} 4... Bg7 {[%clk 0:03:00.4]} 5. d4 {[%clk 0:02:59.4]} 5...
h6 {[%clk 0:03:00.7]} 6. c4 {[%clk 0:02:59.7]} 6... Nd7 {[%clk 0:03:00.2]} 7.
Nc3 {[%clk 0:03:00.4]} 7... e6 {[%clk 0:03:00.5]} 8. e4 {[%clk 0:03:01.1]} 8...
Ne7 {[%clk 0:03:00.9]} 9. Bf4 {[%clk 0:03:00.6]} 9... O-O {[%clk 0:03:00.7]} 10.
Qd2 {[%clk 0:03:00.4]} 10... Kh7 {[%clk 0:02:59.8]} 11. Rfe1 {[%clk 0:03:01.1]}
11... e5 {[%clk 0:02:59.9]} 12. Be3 {[%clk 0:03:00.7]} 12... f5 {[%clk
0:02:59.7]} 13. dxe5 {[%clk 0:03:00.7]} 13... dxe5 {[%clk 0:02:59.7]} 14. exf5
{[%clk 0:02:57.8]} 14... Nxf5 {[%clk 0:02:57.5]} 15. Rad1 {[%clk 0:02:56.6]}
15... Nxe3 {[%clk 0:02:56.9]} 16. Qxe3 {[%clk 0:02:56.7]} 16... c6 {[%clk
0:02:45.5]} 17. Ne4 {[%clk 0:02:56.3]} 17... Qb6 {[%clk 0:02:37.9]} 18. Rxd7
{[%clk 0:02:52.6]} 18... Qxe3 {[%clk 0:02:32.4]} 19. Rxg7+ {[%clk 0:02:53.2]}
19... Kxg7 {[%clk 0:02:30.8]} 20. Rxe3 {[%clk 0:02:48.7]} 20... Be6 {[%clk
0:02:23.9]} 21. Nxe5 {[%clk 0:02:48.3]} 21... Rad8 {[%clk 0:02:17.1]} 22. Re1
{[%clk 0:02:44]} 22... Bf5 {[%clk 0:02:14.2]} 23. g4 {[%clk 0:02:23.6]} 23...
Bxe4 {[%clk 0:02:13.3]} 24. Bxe4 {[%clk 0:02:24.5]} 24... Rd2 {[%clk 0:02:12.8]}
25. Nd3 {[%clk 0:02:21.3]} 25... Rf4 {[%clk 0:02:05.3]} 26. h3 {[%clk
0:02:17.4]} 26... Rxe4 {[%clk 0:02:03.1]} 27. Rxe4 {[%clk 0:02:17]} 27... Rxd3
{[%clk 0:02:03.3]} 28. Re7+ {[%clk 0:02:17.6]} 28... Kf6 {[%clk 0:02:02.8]} 29.
Rxb7 {[%clk 0:02:18.5]} 29... Rxh3 {[%clk 0:02:01.1]} 30. Rb6 {[%clk 0:02:19.2]}
30... Kg5 {[%clk 0:01:48.5]} 31. Rxc6 {[%clk 0:02:18.6]} 31... Rh4 {[%clk
0:01:46.4]} 32. Rxa6 {[%clk 0:02:15.6]} 32... Rxg4+ {[%clk 0:01:46]} 33. Kh2
{[%clk 0:02:15.4]} 33... Rxc4 {[%clk 0:01:45.4]} 34. a4 {[%clk 0:02:10.7]} 34...
Rc2 {[%clk 0:01:45.2]} 35. Rb6 {[%clk 0:02:08.9]} 35... Rxf2+ {[%clk 0:01:43.4]}
36. Kg3 {[%clk 0:02:09.5]} 36... Rc2 {[%clk 0:01:39]} 37. a5 {[%clk 0:02:08.4]}
37... Rc5 {[%clk 0:01:22.7]} 38. a6 {[%clk 0:02:06.6]} 38... Ra5 {[%clk
0:01:22.3]} 39. b4 {[%clk 0:02:06.9]} 39... Ra3+ {[%clk 0:01:22.1]} 40. Kg2
{[%clk 0:02:06.4]} 40... h5 {[%clk 0:01:19.6]} 41. Rb5+ {[%clk 0:02:05.8]} 41...
Kg4 {[%clk 0:01:19.3]} 42. Ra5 {[%clk 0:02:06.7]} 42... Rb3 {[%clk 0:01:17.9]}
43. a7 {[%clk 0:02:06.7]} 43... Rb2+ {[%clk 0:01:18]} 44. Kf1 {[%clk 0:02:07.2]}
44... Kf3 {[%clk 0:01:12.2]} 45. a8=Q+ {[%clk 0:02:06.9]} 1-0

[Event "Late-Titled-Tuesday-Blitz-February-27-2024"]
[Site "Chess.com"]
[Date "2024.02.27"]
[Round "3"]
[White "jefferyx"]
[Black "Ali_rastbod"]
[Result "1-0"]
[WhiteElo "3077"]
[BlackElo "2711"]
[TimeControl "180+1"]
[EndTime "14:26:13 PST"]
[Termination "jefferyx won by resignation"]

1. e4 {[%clk 0:03:00.9]} 1... e6 {[%clk 0:02:58.6]} 2. d4 {[%clk 0:03:00.5]}
2... d5 {[%clk 0:02:59.3]} 3. exd5 {[%clk 0:03:01.1]} 3... exd5 {[%clk
0:02:57.9]} 4. Nf3 {[%clk 0:03:01.8]} 4... Bd6 {[%clk 0:02:58]} 5. c4 {[%clk
0:03:01.8]} 5... Nf6 {[%clk 0:02:58.6]} 6. c5 {[%clk 0:03:01.5]} 6... Be7 {[%clk
0:02:58.7]} 7. Qa4+ {[%clk 0:03:01.1]} 7... c6 {[%clk 0:02:53.9]} 8. Bd3 {[%clk
0:02:59.8]} 8... O-O {[%clk 0:02:50.1]} 9. O-O {[%clk 0:03:00]} 9... Re8 {[%clk
0:02:50.1]} 10. b4 {[%clk 0:02:56]} 10... Ne4 {[%clk 0:02:38.8]} 11. Qc2 {[%clk
0:02:53]} 11... f5 {[%clk 0:02:36.4]} 12. Bf4 {[%clk 0:02:49.9]} 12... Nd7
{[%clk 0:02:34.4]} 13. Nbd2 {[%clk 0:02:48.5]} 13... g5 {[%clk 0:02:16.8]} 14.
Bg3 {[%clk 0:02:14]} 14... Bf6 {[%clk 0:02:16.4]} 15. h3 {[%clk 0:02:10.2]}
15... h5 {[%clk 0:01:53.6]} 16. Rae1 {[%clk 0:02:05.8]} 16... g4 {[%clk
0:01:40.7]} 17. hxg4 {[%clk 0:02:04.2]} 17... hxg4 {[%clk 0:01:38.1]} 18. Ne5
{[%clk 0:02:03.4]} 18... Nxe5 {[%clk 0:01:35.7]} 19. Bxe5 {[%clk 0:02:04.3]}
19... Rxe5 {[%clk 0:01:31.6]} 20. dxe5 {[%clk 0:02:05.2]} 20... Bxe5 {[%clk
0:01:32.5]} 21. Nxe4 {[%clk 0:01:59.9]} 21... fxe4 {[%clk 0:01:31.2]} 22. Bxe4
{[%clk 0:02:00.8]} 22... dxe4 {[%clk 0:01:31.3]} 23. Qxe4 {[%clk 0:02:01.7]}
23... Bf6 {[%clk 0:01:15.1]} 24. Qg6+ {[%clk 0:01:42.7]} 24... Kf8 {[%clk
0:01:12.8]} 25. Re4 {[%clk 0:01:43.3]} 1-0

[Event "Late-Titled-Tuesday-Blitz-February-27-2024"]
[Site "Chess.com"]
[Date "2024.02.27"]
[Round "3"]
[White "TigrVShlyape"]
[Black "WilsonPalencia21"]
[Result "1-0"]
[WhiteElo "2908"]
[BlackElo "2587"]
[TimeControl "180+1"]
[EndTime "14:26:26 PST"]
[Termination "TigrVShlyape won by resignation"]

1. d4 {[%clk 0:03:00.9]} 1... d5 {[%clk 0:02:58.8]} 2. Bf4 {[%clk 0:02:59.8]}
2... Nf6 {[%clk 0:02:58.3]} 3. e3 {[%clk 0:02:59.4]} 3... c5 {[%clk 0:02:58.7]}
4. c3 {[%clk 0:02:58.9]} 4... Qb6 {[%clk 0:02:58.8]} 5. Qb3 {[%clk 0:02:58.3]}
5... Nc6 {[%clk 0:02:55.8]} 6. Nd2 {[%clk 0:02:58.1]} 6... c4 {[%clk 0:02:55.8]}
7. Qc2 {[%clk 0:02:57.7]} 7... Nh5 {[%clk 0:02:55.8]} 8. Bg3 {[%clk 0:02:53.7]}
8... g6 {[%clk 0:02:55.8]} 9. e4 {[%clk 0:02:51.7]} 9... e6 {[%clk 0:02:56.1]}
10. Be2 {[%clk 0:02:47.3]} 10... Nxg3 {[%clk 0:02:52.9]} 11. hxg3 {[%clk
0:02:47.5]} 11... Bg7 {[%clk 0:02:53.5]} 12. Bf3 {[%clk 0:02:43.5]} 12... Ne7
{[%clk 0:02:50]} 13. Ne2 {[%clk 0:02:41.6]} 13... Bd7 {[%clk 0:02:47.1]} 14. Nf4
{[%clk 0:02:37.6]} 14... Bc6 {[%clk 0:02:34.2]} 15. exd5 {[%clk 0:02:33]} 15...
exd5 {[%clk 0:02:31.4]} 16. O-O {[%clk 0:02:32.8]} 16... O-O {[%clk 0:02:30.9]}
17. Rfe1 {[%clk 0:02:32.7]} 17... Rfe8 {[%clk 0:02:31.4]} 18. Nf1 {[%clk
0:02:30.8]} 18... Qd8 {[%clk 0:02:04.8]} 19. Re2 {[%clk 0:02:27]} 19... Qd7
{[%clk 0:02:01.1]} 20. Rae1 {[%clk 0:02:26.2]} 20... Bh6 {[%clk 0:02:01.6]} 21.
Ne3 {[%clk 0:02:23]} 21... Bxf4 {[%clk 0:01:48.4]} 22. gxf4 {[%clk 0:02:22.5]}
22... Rad8 {[%clk 0:01:44.2]} 23. Ng4 {[%clk 0:02:19.8]} 23... Qd6 {[%clk
0:01:40.8]} 24. Qd2 {[%clk 0:02:18]} 24... Nf5 {[%clk 0:01:35.5]} 25. Re5 {[%clk
0:02:12.6]} 25... f6 {[%clk 0:01:29.5]} 26. Bxd5+ {[%clk 0:02:09.7]} 26... Kg7
{[%clk 0:01:24.3]} 27. Rxe8 {[%clk 0:02:07.9]} 27... Bxe8 {[%clk 0:01:19.8]} 28.
Bxc4 {[%clk 0:02:04.3]} 28... Bc6 {[%clk 0:01:18]} 29. Re6 {[%clk 0:01:51.3]}
29... Qc7 {[%clk 0:01:17.9]} 30. Rxf6 {[%clk 0:01:49]} 30... h5 {[%clk
0:01:17.8]} 31. Rf7+ {[%clk 0:01:47.6]} 31... Qxf7 {[%clk 0:01:15.2]} 32. Bxf7
{[%clk 0:01:47.7]} 32... hxg4 {[%clk 0:01:15.9]} 33. Be6 {[%clk 0:01:46.2]}
33... Bd5 {[%clk 0:01:09.1]} 34. Bxd5 {[%clk 0:01:43.2]} 34... Rxd5 {[%clk
0:01:09]} 35. Qe2 {[%clk 0:01:43.3]} 35... g3 {[%clk 0:01:05.9]} 36. fxg3 {[%clk
0:01:43.1]} 36... Nxg3 {[%clk 0:01:06]} 37. Qe7+ {[%clk 0:01:42.4]} 37... Kh8
{[%clk 0:01:01.2]} 38. Qf8+ {[%clk 0:01:40.9]} 38... Kh7 {[%clk 0:01:01.1]} 39.
Qf7+ {[%clk 0:01:41.3]} 1-0

[Event "Late-Titled-Tuesday-Blitz-February-27-2024"]
[Site "Chess.com"]
[Date "2024.02.27"]
[Round "3"]
[White "becemix"]
[Black "jinxy2009"]
[Result "1-0"]
[WhiteElo "2410"]
[BlackElo "2160"]
[TimeControl "180+1"]
[EndTime "14:26:46 PST"]
[Termination "becemix won by checkmate"]

1. e4 {[%clk 0:02:59.7]} 1... c5 {[%clk 0:02:59.2]} 2. d4 {[%clk 0:02:58.5]}
2... cxd4 {[%clk 0:02:58.7]} 3. c3 {[%clk 0:02:59.1]} 3... Nf6 {[%clk
0:02:59.1]} 4. e5 {[%clk 0:02:59.2]} 4... Nd5 {[%clk 0:02:59.6]} 5. cxd4 {[%clk
0:03:00.1]} 5... Nc6 {[%clk 0:02:58.8]} 6. Nc3 {[%clk 0:03:00]} 6... Nxc3 {[%clk
0:02:55.1]} 7. bxc3 {[%clk 0:03:00.9]} 7... d6 {[%clk 0:02:55.9]} 8. f4 {[%clk
0:03:00.8]} 8... d5 {[%clk 0:02:34.7]} 9. Bd3 {[%clk 0:02:57.4]} 9... Bd7 {[%clk
0:02:13.4]} 10. Ne2 {[%clk 0:02:54.6]} 10... Rc8 {[%clk 0:02:09.5]} 11. O-O
{[%clk 0:02:54.1]} 11... Bg4 {[%clk 0:02:04]} 12. f5 {[%clk 0:02:52]} 12... Qa5
{[%clk 0:01:43]} 13. e6 {[%clk 0:02:49.1]} 13... f6 {[%clk 0:01:09.9]} 14. Qb3
{[%clk 0:02:35.5]} 14... Kd8 {[%clk 0:00:44.9]} 15. Nf4 {[%clk 0:02:31.6]} 15...
g6 {[%clk 0:00:25.3]} 16. Nxd5 {[%clk 0:01:56.9]} 16... gxf5 {[%clk 0:00:17.7]}
17. Bxf5 {[%clk 0:01:56.8]} 17... Bxf5 {[%clk 0:00:17.8]} 18. Rxf5 {[%clk
0:01:57.7]} 18... Qa6 {[%clk 0:00:15.1]} 19. Ba3 {[%clk 0:01:54.4]} 19... Qd3
{[%clk 0:00:13.8]} 20. Raf1 {[%clk 0:01:53.5]} 20... Nxd4 {[%clk 0:00:10.7]} 21.
Qxb7 {[%clk 0:01:50.2]} 21... Ne2+ {[%clk 0:00:10.1]} 22. Kh1 {[%clk 0:01:50]}
22... Nf4 {[%clk 0:00:02.1]} 23. Qd7# {[%clk 0:01:49.4]} 1-0

[Event "Late-Titled-Tuesday-Blitz-February-27-2024"]
[Site "Chess.com"]
[Date "2024.02.27"]
[Round "3"]
[White "SantoBlue"]
[Black "NateSolon"]
[Result "1-0"]
[WhiteElo "2981"]
[BlackElo "2688"]
[TimeControl "180+1"]
[EndTime "14:26:47 PST"]
[Termination "SantoBlue won by resignation"]

1. e4 {[%clk 0:03:00.9]} 1... c5 {[%clk 0:02:59.4]} 2. Nf3 {[%clk 0:03:01.2]}
2... Nf6 {[%clk 0:02:59.3]} 3. e5 {[%clk 0:02:59.4]} 3... Nd5 {[%clk 0:02:59.5]}
4. Nc3 {[%clk 0:02:58.2]} 4... e6 {[%clk 0:02:59.8]} 5. Ne4 {[%clk 0:02:57.7]}
5... f5 {[%clk 0:02:59]} 6. Nc3 {[%clk 0:02:57.1]} 6... Nb4 {[%clk 0:02:59.3]}
7. d4 {[%clk 0:02:47.3]} 7... cxd4 {[%clk 0:02:55.5]} 8. Nxd4 {[%clk 0:02:48.2]}
8... N8c6 {[%clk 0:02:54.8]} 9. Nf3 {[%clk 0:02:46.9]} 9... Be7 {[%clk
0:02:40.6]} 10. a3 {[%clk 0:02:46.2]} 10... Na6 {[%clk 0:02:40.9]} 11. Nb5
{[%clk 0:02:42.7]} 11... O-O {[%clk 0:02:38.3]} 12. Be2 {[%clk 0:02:41.6]} 12...
Nc5 {[%clk 0:02:37.2]} 13. O-O {[%clk 0:02:41.1]} 13... b6 {[%clk 0:02:30.6]}
14. Nd6 {[%clk 0:02:37.2]} 14... Bxd6 {[%clk 0:02:27.5]} 15. Qxd6 {[%clk
0:02:34.1]} 15... Ne4 {[%clk 0:02:26.5]} 16. Qd1 {[%clk 0:02:33.9]} 16... Bb7
{[%clk 0:02:25.8]} 17. h4 {[%clk 0:02:27.9]} 17... Qc7 {[%clk 0:02:16]} 18. Bf4
{[%clk 0:02:27.2]} 18... Rac8 {[%clk 0:02:15.4]} 19. Bd3 {[%clk 0:02:16.2]}
19... Ne7 {[%clk 0:02:12.8]} 20. Re1 {[%clk 0:02:11.5]} 20... Nc5 {[%clk
0:02:03.8]} 21. Bf1 {[%clk 0:02:00.5]} 21... Nd5 {[%clk 0:01:54.4]} 22. Bh2
{[%clk 0:01:57.6]} 22... f4 {[%clk 0:01:51.1]} 23. c4 {[%clk 0:01:56.6]} 23...
Ne7 {[%clk 0:01:50.3]} 24. b4 {[%clk 0:01:57.2]} 24... Ne4 {[%clk 0:01:48]} 25.
Bd3 {[%clk 0:01:55.6]} 25... d5 {[%clk 0:01:30.7]} 26. exd6 {[%clk 0:01:54.2]}
26... Nxd6 {[%clk 0:01:31.2]} 27. Ng5 {[%clk 0:01:51]} 27... h6 {[%clk
0:01:22.8]} 28. Nxe6 {[%clk 0:01:48.7]} 28... Qc6 {[%clk 0:01:23.1]} 29. Qg4
{[%clk 0:01:49.1]} 29... Rf7 {[%clk 0:01:18.9]} 30. b5 {[%clk 0:01:48.9]} 30...
Qd7 {[%clk 0:01:12.2]} 31. Rad1 {[%clk 0:01:49.5]} 31... Kh8 {[%clk 0:00:48.3]}
32. Bxf4 {[%clk 0:01:36]} 32... Qe8 {[%clk 0:00:39.5]} 33. Bxd6 {[%clk 0:01:33]}
1-0

[Event "Late-Titled-Tuesday-Blitz-February-27-2024"]
[Site "Chess.com"]
[Date "2024.02.27"]
[Round "3"]
[White "Sokoloco"]
[Black "Vasily85"]
[Result "1-0"]
[WhiteElo "2794"]
[BlackElo "2497"]
[TimeControl "180+1"]
[EndTime "14:26:55 PST"]
[Termination "Sokoloco won on time"]

1. b3 {[%clk 0:03:00.9]} 1... d5 {[%clk 0:02:53.3]} 2. Nf3 {[%clk 0:03:00.9]}
2... c5 {[%clk 0:02:49.4]} 3. e3 {[%clk 0:03:00.4]} 3... a6 {[%clk 0:02:25.9]}
4. Bb2 {[%clk 0:03:00.2]} 4... Nc6 {[%clk 0:02:25.4]} 5. d4 {[%clk 0:03:00.9]}
5... Nf6 {[%clk 0:02:24]} 6. Nbd2 {[%clk 0:03:00.6]} 6... Bg4 {[%clk 0:02:23.8]}
7. Be2 {[%clk 0:03:01]} 7... e6 {[%clk 0:02:23.9]} 8. O-O {[%clk 0:03:01.5]}
8... Bd6 {[%clk 0:02:22.9]} 9. Ne5 {[%clk 0:03:00.8]} 9... Bxe2 {[%clk
0:02:19.5]} 10. Qxe2 {[%clk 0:03:01.7]} 10... O-O {[%clk 0:02:16.5]} 11. f4
{[%clk 0:02:53.9]} 11... Rc8 {[%clk 0:02:06.5]} 12. c3 {[%clk 0:02:51.8]} 12...
b5 {[%clk 0:01:51.3]} 13. a4 {[%clk 0:02:30.6]} 13... cxd4 {[%clk 0:01:19.9]}
14. exd4 {[%clk 0:02:12.7]} 14... Qb6 {[%clk 0:00:41.8]} 15. axb5 {[%clk
0:02:10.2]} 15... axb5 {[%clk 0:00:42.7]} 16. b4 {[%clk 0:02:06.7]} 16... Ra8
{[%clk 0:00:41.4]} 17. g4 {[%clk 0:01:52.9]} 17... Qb7 {[%clk 0:00:10]} 18. g5
{[%clk 0:01:38.4]} 18... Nd7 {[%clk 0:00:09.1]} 19. Nb3 {[%clk 0:01:39.1]} 19...
Rxa1 {[%clk 0:00:04.2]} 20. Rxa1 {[%clk 0:01:38.9]} 20... Bxe5 {[%clk
0:00:03.5]} 21. fxe5 {[%clk 0:01:38.2]} 1-0